bitfinex/quotes_ETHUSD_20250821
["timestamp","ask_amount","ask_price","bid_price","bid_amount"]
[1755750994972,0.4249,4311.6,4310.6,23.05606573]
[1755750995177,0.4249,4311.6,4311.2,0.697484]
[1755750995404,0.1211,4311.5,4311.3,3.622]
[1755750995570,0.3038,4311.4,4311.3,3.622]
[1755750995769,0.4198,4311.4,4311.3,3.622]
[1755750997482,0.4198,4311.4,4311.3,3.9119]
[1755750997483,0.116,4311.4,4311.3,3.9119]
[1755750997685,0.002,4312.6,4311.3,22.57652857]
[1755750997886,0.002,4312.6,4311.4,0.02319432]
[1755750998286,0.002,4312.6,4311.7,17.18910319]
[1755750998527,0.002,4312.6,4311.8,3.64619217]
[1755751000297,0.002,4312.6,4312.5,0.2899]
[1755751000529,0.002,4312.6,4312.5,3.9109]
[1755751000820,0.002,4312.6,4312.5,21.92939319]
[1755751000986,0.002,4312.6,4312.5,4.74029]
[1755751001386,0.002,4312.6,4312.5,0.7282]
[1755751001597,0.002,4312.6,4312.5,0.2899]
[1755751001829,0.002,4312.6,4312.5,3.623]
[1755751002031,0.002,4312.6,4312.5,4.401]
[1755751002237,0.002,4312.6,4312.5,3.9386]
[1755751002418,0.002,4312.6,4312.5,4.401]
[1755751003215,0.002,4312.6,4312.5,4.493962]
[1755751005534,0.002,4312.6,4312.5,4.5171504]
[1755751005839,0.002,4312.6,4312.5,7.32458736]
[1755751006041,0.002,4312.6,4312.5,9.64342793]
[1755751006213,0.002,4312.6,4312.5,12.64342793]
[1755751006530,0.002,4312.6,4312.5,13.21971491]
[1755751007837,0.002,4312.6,4312.5,13.33571491]
[1755751008331,0.022,4312.8,4312.7,2.31873304]
[1755751008502,0.022,4312.8,4312.7,9.91333304]
[1755751008697,0.022,4312.8,4312.7,10.37573304]
[1755751009336,0.02,4313.8,4313.5,0.66]
[1755751009536,0.02,4313.8,4313.7,21.16470319]
[1755751009703,0.02,4313.8,4313.7,21.33882872]
[1755751010037,0.02,4313.8,4313.7,21.80122872]
[1755751011133,0.02,4313.8,4313.7,20.67882872]
[1755751011633,0.02,4313.8,4313.7,21.25722872]
[1755751012507,0.02,4313.8,4313.7,20.79482872]
[1755751012714,0.1192,4313.8,4313.7,3.29012553]
[1755751012909,0.1192,4313.8,4313.7,6.90512553]
[1755751013339,0.1192,4313.8,4313.7,3.90512553]
[1755751013915,0.1192,4313.8,4313.7,3.90312553]
[1755751018938,0.1192,4313.8,4313.7,3.89912553]
[1755751019132,0.4472,4313.8,4313.7,3.89912553]
[1755751019529,0.4472,4313.8,4313.7,0.116]
[1755751020335,0.4472,4313.8,4312.6,17.18910319]
[1755751020544,0.328,4313.7,4313.3,0.4472]
[1755751020926,0.116,4313.4,4313.3,0.4472]
[1755751021153,0.543,4313.4,4313.3,0.4472]
[1755751021455,0.543,4313.4,4312.8,3.77882927]
[1755751021622,0.3278,4313.3,4312.9,0.697252]
[1755751022152,0.2173,4313.0,4312.7,0.697274]
[1755751022456,0.3255,4312.9,4312.7,0.697274]
[1755751022657,0.116,4312.8,4312.7,0.697274]
[1755751022860,0.5426,4312.8,4312.7,0.697274]
[1755751023428,0.4091,4312.8,4312.7,0.697274]
[1755751023638,0.4091,4312.8,4312.6,3.606]
[1755751023958,0.5426,4312.8,4312.6,3.606]
[1755751024839,0.1335,4312.7,4311.8,17.20910319]
[1755751025042,0.1335,4312.7,4311.8,0.02]
[1755751025043,0.2915,4311.9,4311.8,0.02]
[1755751025346,0.2915,4311.9,4311.8,4.321386]
[1755751025734,0.4075,4311.9,4311.8,4.321386]
[1755751027056,0.4075,4311.9,4311.8,3.624]
[1755751027683,0.116,4311.9,4311.8,21.12770319]
[1755751027851,0.328,4313.5,4311.8,23.70519289]
[1755751028042,0.328,4313.5,4312.5,17.18910319]
[1755751028241,0.328,4313.9,4312.5,20.79410319]
[1755751028447,0.328,4313.9,4312.6,0.4624]
[1755751028645,0.328,4313.9,4312.7,3.605]
[1755751028864,0.328,4314.5,4312.7,3.605]
[1755751029178,0.328,4314.5,4313.3,17.18910319]
[1755751029376,0.328,4314.5,4313.4,3.605]
[1755751029546,0.02,4314.8,4313.6,0.3156]
[1755751029870,0.02,4314.8,4313.6,3.9216]
[1755751030073,0.02,4314.8,4313.6,4.384]
[1755751030844,0.328,4314.7,4313.6,4.014542]
[1755751031044,0.328,4314.5,4313.6,3.698942]
[1755751031674,0.328,4314.5,4313.6,3.697942]
[1755751031974,0.0034,4313.7,4313.6,3.697942]
[1755751032177,0.0034,4313.7,4313.6,3.605]
[1755751036673,0.0034,4313.7,4312.6,17.18910319]
[1755751036674,0.0034,4313.7,4313.3,3.6]
[1755751036861,0.3314,4313.7,4313.3,3.6]
[1755751037462,0.0034,4313.7,4313.3,3.6]
[1755751037884,0.116,4313.4,4313.3,3.6]
[1755751038088,0.2131,4313.4,4313.3,3.6]
[1755751038256,0.2131,4313.4,4313.1,3.6]
[1755751038457,0.0971,4313.4,4313.1,3.6]
[1755751038660,0.116,4313.2,4313.1,3.6]
[1755751040255,0.116,4313.2,4313.1,3.597]
[1755751040660,0.116,4313.2,4313.1,3.713]
[1755751042177,0.116,4313.2,4313.1,3.999]
[1755751043679,0.116,4313.2,4313.1,4.4351]
[1755751044059,0.116,4313.2,4313.1,6.59762032]
[1755751045398,0.4187,4313.2,4313.1,0.116]
[1755751045605,0.4187,4313.2,4312.8,0.001]
[1755751045905,0.116,4312.9,4312.8,0.001]
[1755751046059,0.4169,4312.9,4312.8,0.001]
[1755751049070,0.116,4312.9,4312.8,0.001]
[1755751049259,0.215,4312.9,4312.8,0.001]
[1755751049779,0.5958,4312.9,4312.8,0.001]
[1755751049972,0.215,4312.9,4312.8,0.001]
[1755751050814,20.72980319,4312.9,4312.8,0.001]
[1755751051217,24.32480319,4312.9,4312.8,0.001]
[1755751051807,24.98480319,4312.9,4312.8,0.001]
[1755751054026,25.41732634,4312.9,4312.8,0.001]
[1755751054227,27.34694282,4312.9,4312.8,0.001]
[1755751054698,27.34694282,4312.9,4312.3,0.001]
[1755751054699,33.66,4312.8,4312.3,0.001]
[1755751055023,21.26780319,4312.4,4312.3,0.001]
[1755751055215,51.26780319,4312.4,4312.3,0.001]
[1755751055391,59.32974282,4312.4,4312.3,0.001]
[1755751055720,3.66,4312.3,4311.8,0.02]
[1755751055924,17.49000319,4311.9,4311.8,0.02]
[1755751056128,20.49000319,4311.9,4311.8,0.02]
[1755751056327,22.69058923,4311.9,4311.8,0.02]
[1755751056891,23.35058923,4311.9,4311.8,0.02]
[1755751059116,3.15818604,4311.9,4311.8,0.02]
[1755751059417,3.594,4311.9,4311.8,0.02]
[1755751059593,4.254,4311.9,4311.8,0.02]
[1755751060130,5.576,4312.4,4311.8,0.7421]
[1755751060430,3.66,4312.2,4311.8,0.7421]
[1755751061300,17.18910319,4312.5,4311.8,0.7421]
[1755751061645,4.71891032,4312.4,4311.9,0.4738]
[1755751062112,3.595,4312.3,4311.9,0.4738]
[1755751062521,3.595,4312.3,4311.8,0.02]
[1755751062724,0.1608,4311.9,4311.8,0.02]
[1755751063130,0.5997,4311.9,4311.8,0.02]
[1755751063328,5.96183963,4311.9,4311.8,0.02]
[1755751063529,6.62183963,4311.9,4311.8,0.02]
[1755751064045,9.77793963,4311.9,4311.8,0.02]
[1755751064340,8.95713963,4311.9,4311.8,0.3116]
[1755751064499,3.595,4311.9,4311.8,0.2916]
[1755751065549,0.66,4312.3,4311.8,0.2916]
[1755751065762,0.66,4312.2,4311.8,0.2916]
[1755751065922,4.254,4312.2,4311.8,0.2916]
[1755751066954,4.254,4312.2,4311.4,0.001]
[1755751067158,0.89729103,4312.1,4311.4,0.001]
[1755751069326,0.116,4311.5,4311.4,0.001]
[1755751069527,3.709,4311.5,4311.4,0.2926]
[1755751070636,0.116,4311.5,4311.4,0.2926]
[1755751070817,3.705,4311.5,4311.4,0.2926]
[1755751071020,4.0755,4311.5,4311.4,0.2926]
[1755751071847,4.0755,4311.5,4311.4,0.001]
[1755751072054,7.3646,4311.5,4311.4,0.001]
[1755751072379,7.8063,4311.5,4311.4,0.001]
[1755751074349,0.7756,4311.5,4311.4,0.001]
[1755751074551,4.0755,4311.5,4311.4,0.001]
[1755751076773,4.3646,4311.5,4311.4,0.001]
[1755751076938,4.8063,4311.5,4311.4,0.001]
[1755751078185,4.0725,4311.5,4311.4,0.001]
[1755751078954,3.9545,4311.5,4311.4,0.2926]
[1755751079153,4.0705,4311.5,4311.4,0.2926]
[1755751080676,4.0715,4311.5,4311.4,0.2926]
[1755751080849,0.116,4311.5,4311.4,0.7664]
[1755751081895,0.4051,4311.5,4311.4,0.001]
[1755751082184,0.8468,4311.5,4311.4,0.001]
[1755751082476,1.58988,4311.5,4311.4,0.001]
[1755751082777,0.85908,4311.5,4311.4,0.2926]
[1755751083147,1.14818,4311.5,4311.4,0.001]
[1755751083347,1.14818,4311.5,4310.8,0.021]
[1755751083546,0.74308,4311.5,4311.4,0.2916]
[1755751083779,6.584,4311.5,4311.4,0.2916]
[1755751083970,6.7,4311.5,4311.4,0.2916]
[1755751084176,3.0,4311.4,4311.0,0.001]
[1755751084492,0.116,4311.1,4311.0,0.001]
[1755751084683,0.116,4311.1,4311.0,0.4748]
[1755751084684,3.7,4311.1,4311.0,0.4748]
[1755751084976,3.7,4311.1,4311.0,0.7664]
[1755751085356,4.07,4311.1,4311.0,0.7664]
[1755751085554,0.116,4311.1,4311.0,0.7664]
[1755751085761,3.698,4311.1,4311.0,0.7664]
[1755751086280,0.116,4311.1,4311.0,0.7664]
[1755751087651,0.116,4311.1,4311.0,0.2926]
[1755751088484,0.116,4311.1,4311.0,0.001]
[1755751088655,1.2166,4311.1,4311.0,0.001]
[1755751089984,4.2166,4311.1,4311.0,0.001]
[1755751091253,4.8766,4311.1,4311.0,0.001]
[1755751093484,5.09335449,4311.1,4311.0,0.001]
[1755751094390,20.84910319,4310.9,4310.8,0.021]
[1755751094592,58.14870736,4310.9,4310.8,0.021]
[1755751094883,58.61790736,4310.9,4310.8,0.021]
[1755751096184,58.61716599,4310.9,4310.8,0.021]
[1755751096384,28.61516599,4310.9,4310.8,0.021]
[1755751096758,27.7694833,4310.9,4310.8,0.021]
[1755751096961,28.11551191,4310.9,4310.8,0.021]
[1755751097163,27.7694833,4310.9,4310.8,0.021]
[1755751097758,58.61345213,4310.9,4310.8,0.021]
[1755751097963,58.61345213,4310.9,4310.5,0.001]
[1755751097964,0.66,4310.8,4310.5,0.001]
[1755751098294,0.9548,4310.6,4310.5,0.001]
[1755751098679,31.424,4310.6,4310.5,0.001]
[1755751098980,35.59972035,4310.6,4310.5,0.001]
[1755751099177,5.101852,4310.6,4310.5,0.001]
[1755751099358,4.75598864,4310.6,4310.5,0.001]
[1755751099561,6.46747468,4310.6,4310.5,0.001]
[1755751100355,0.66,4310.4,4310.3,0.001]
[1755751100559,24.72390319,4310.4,4310.3,0.001]
[1755751100755,25.19310319,4310.4,4310.3,0.001]
[1755751100959,0.66,4310.2,4309.9,0.001]
[1755751101257,20.84910319,4310.0,4309.9,0.001]
[1755751102261,3.116,4310.0,4309.9,0.3067]
[1755751102464,7.0106,4310.0,4309.9,0.3067]
[1755751102692,3.116,4310.0,4309.9,0.3067]
[1755751102867,6.699,4310.0,4309.9,0.7594]
[1755751103956,3.116,4310.0,4309.9,0.7594]
[1755751104190,3.0,4310.0,4309.9,0.7594]
[1755751104389,6.583,4310.0,4309.9,0.7594]
[1755751104591,6.585,4310.0,4309.9,0.7594]
[1755751104810,6.585,4310.0,4309.0,0.001]
[1755751104811,7.3595,4310.0,4309.3,0.4527]
[1755751104981,3.0,4309.9,4309.3,0.4527]
[1755751105296,0.116,4309.4,4309.0,0.001]
[1755751105504,0.6585,4310.0,4309.3,0.3057]
[1755751105664,3.0,4309.8,4309.3,0.3057]
[1755751105868,0.116,4309.4,4309.3,0.3057]
[1755751106118,3.701,4309.4,4309.3,0.3057]
[1755751106471,3.701,4309.4,4309.3,0.7584]
[1755751106687,0.116,4309.4,4309.3,0.7584]
[1755751106893,3.7,4309.4,4309.3,0.7584]
[1755751107204,0.116,4309.4,4309.3,0.7584]
[1755751110369,0.4862,4309.4,4309.3,0.3057]
[1755751110574,0.4862,4309.4,4309.0,0.001]
[1755751110770,0.3702,4309.4,4309.0,0.001]
[1755751110971,0.116,4309.1,4309.0,0.001]
[1755751111201,3.702,4309.1,4309.0,0.3067]
[1755751111718,0.116,4309.1,4309.0,0.7594]
[1755751111875,3.701,4309.1,4309.0,0.7594]
[1755751112799,4.0711,4309.1,4309.0,0.3067]
[1755751113116,4.8351,4309.1,4309.0,0.001]
[1755751113296,4.8351,4309.1,4308.8,0.02]
[1755751113297,3.0,4309.0,4308.8,0.02]
[1755751113479,0.78351,4308.9,4308.8,0.02]
[1755751113807,4.37051,4308.9,4308.8,0.02]
[1755751114010,4.37051,4308.9,4308.8,0.3257]
[1755751114217,6.587,4308.9,4308.8,0.3257]
[1755751114388,6.587,4308.9,4308.8,0.02]
[1755751115096,6.587,4308.9,4308.8,0.3257]
[1755751116224,0.116,4309.1,4308.8,0.7784]
[1755751116579,0.116,4309.1,4308.9,0.4527]
[1755751116779,0.116,4309.1,4309.0,0.3057]
[1755751116975,3.587,4309.5,4309.0,0.7584]
[1755751117178,0.116,4309.1,4309.0,0.7584]
[1755751117485,0.116,4309.1,4309.0,0.3057]
[1755751118108,0.116,4309.1,4309.0,0.7584]
[1755751121473,0.116,4309.1,4309.0,0.3057]
[1755751122604,0.116,4309.1,4309.0,0.3067]
[1755751123309,0.116,4309.1,4309.0,0.7615]
[1755751123880,3.587,4309.6,4309.0,2.10376032]
[1755751123881,3.503,4309.6,4309.0,2.10376032]
[1755751124207,0.002,4309.9,4309.0,2.10376032]
[1755751124208,0.116,4309.1,4309.0,2.10376032]
[1755751124411,0.116,4309.1,4309.0,0.3067]
[1755751124788,0.116,4309.1,4309.0,0.7615]
[1755751125309,0.116,4309.1,4309.0,20.95060319]
[1755751125880,0.116,4309.1,4309.0,17.49580319]
[1755751126779,0.116,4309.1,4309.0,0.3067]
[1755751127308,0.116,4309.1,4309.0,0.7615]
[1755751127512,0.116,4309.1,4309.0,17.95060319]
[1755751128481,0.116,4309.1,4309.0,0.3067]
[1755751130703,0.8817,4309.1,4309.0,0.001]
[1755751131419,4.4607,4309.1,4309.0,0.001]
[1755751131587,4.90677,4309.1,4309.0,0.001]
[1755751131996,7.90677,4309.1,4309.0,0.001]
[1755751133721,8.56677,4309.1,4309.0,0.001]
[1755751135495,4.98777,4309.1,4309.0,0.001]
[1755751135719,8.56577,4309.1,4309.0,0.001]
[1755751136225,7.90477,4309.1,4309.0,0.001]
[1755751140816,25.09387319,4309.1,4309.0,0.001]
[1755751141615,25.75387319,4309.1,4309.0,0.001]
[1755751142143,22.17687319,4309.1,4309.0,0.001]
[1755751142355,25.75287319,4309.1,4309.0,0.001]
[1755751143226,4.32777,4309.1,4309.0,0.001]
[1755751143415,7.90477,4309.1,4309.0,0.001]
[1755751143742,7.45387,4309.1,4309.0,0.001]
[1755751143941,25.75587319,4309.1,4309.0,0.001]
[1755751144644,25.09587319,4309.1,4309.0,0.001]
[1755751145318,3.56207,4309.1,4309.0,0.3125]
[1755751145510,0.116,4309.1,4309.0,0.7673]
[1755751146551,0.116,4309.1,4309.0,0.3125]
[1755751147459,0.116,4309.1,4309.0,0.7673]
[1755751149829,0.116,4309.1,4309.0,0.3125]
[1755751150024,4.0098,4309.1,4309.0,0.001]
[1755751150218,4.45607,4309.1,4309.0,0.001]
[1755751150823,22.09807319,4309.1,4309.0,0.001]
[1755751151016,25.09807319,4309.1,4309.0,0.001]
[1755751154936,3.87507,4309.1,4309.0,0.001]
[1755751155143,6.695,4309.1,4309.0,0.001]
[1755751155878,6.695,4309.1,4309.0,0.307]
[1755751156201,7.0051,4309.1,4309.0,0.001]
[1755751156337,6.695,4309.1,4309.0,0.001]
[1755751156665,9.05713963,4309.1,4309.0,0.001]
[1755751157463,6.05813963,4309.1,4309.0,0.307]
[1755751159448,6.05813963,4309.1,4309.0,0.001]
[1755751159855,6.36823963,4309.1,4309.0,0.001]
[1755751160039,6.81693963,4309.1,4309.0,0.001]
[1755751161771,9.81693963,4309.1,4309.0,0.001]
[1755751166286,10.47693963,4309.1,4309.0,0.001]
[1755751169077,3.66,4309.0,4308.8,0.02]
[1755751169282,24.73320319,4308.9,4308.8,0.02]
[1755751169459,25.18190319,4308.9,4308.8,0.02]
[1755751172172,25.18090319,4308.9,4308.8,0.02]
[1755751173859,25.18090319,4308.9,4308.8,0.326]
[1755751173860,23.76210319,4308.9,4308.8,0.326]
[1755751174169,26.12424282,4308.9,4308.8,0.327]
[1755751176982,3.0,4308.8,4308.5,0.001]
[1755751177177,3.0,4308.6,4308.5,0.001]
[1755751177497,3.3101,4308.6,4308.5,0.001]
[1755751177696,3.7588,4308.6,4308.5,0.001]
[1755751177902,6.23693963,4308.6,4308.5,0.001]
[1755751178062,6.89693963,4308.6,4308.5,0.001]
[1755751179294,6.89693963,4308.6,4308.3,0.001]
[1755751179295,0.66,4308.5,4308.3,0.001]
[1755751179601,24.73120319,4308.4,4308.3,0.001]
[1755751179802,25.17990319,4308.4,4308.3,0.001]
[1755751180019,0.66,4308.2,4307.9,0.001]
[1755751180161,21.15920319,4308.0,4305.9,0.209]
[1755751180367,20.96510319,4307.4,4305.9,0.209]
[1755751180609,24.84720319,4307.4,4305.9,0.209]
[1755751180965,25.31910319,4307.4,4305.9,0.209]
[1755751181167,26.35269527,4307.4,4305.9,0.209]
[1755751181889,26.35269527,4307.4,4305.7,0.209]
[1755751185302,22.78069527,4307.4,4305.7,0.209]
[1755751185468,26.35069527,4307.4,4305.7,0.209]
[1755751188465,26.35069527,4307.4,4305.6,0.001]
[1755751188670,26.35069527,4307.4,4305.9,0.209]
[1755751189389,22.78069527,4307.4,4305.9,0.209]
[1755751189570,25.56669527,4307.4,4306.4,0.209]
[1755751189998,26.34619527,4307.4,4305.6,0.001]
[1755751190271,26.34619527,4307.4,4306.0,0.209]
[1755751190768,26.34619527,4307.4,4306.8,0.021]
[1755751192102,25.56669527,4307.4,4307.3,0.3051]
[1755751192396,3.66,4307.3,4306.8,0.021]
[1755751192601,17.96510319,4307.0,4306.8,0.021]
[1755751192805,20.96510319,4307.0,4306.9,0.3051]
[1755751192971,23.87310319,4307.0,4306.9,0.3051]
[1755751193171,0.116,4307.0,4306.9,0.3051]
[1755751193367,3.685,4307.0,4306.9,0.5141]
[1755751198989,3.685,4307.0,4306.9,0.3051]
[1755751199587,3.685,4307.0,4306.9,0.5141]
[1755751199881,0.116,4307.0,4306.9,0.5141]
[1755751201122,0.116,4307.0,4306.9,1.32590278]
[1755751202090,0.116,4307.0,4306.9,3.6477584]
[1755751202615,0.116,4307.0,4306.9,1.32590278]
[1755751203318,0.116,4307.0,4306.9,3.6477584]
[1755751203615,0.002,4307.8,4307.0,2.32175786]
[1755751203792,0.002,4307.8,4307.7,0.3041]
[1755751203989,0.118,4307.8,4307.7,0.3041]
[1755751204185,0.118,4307.8,4307.7,0.5131]
[1755751204584,0.118,4307.8,4307.7,0.53631424]
[1755751204786,0.002,4307.8,4307.7,6.66954144]
[1755751205008,0.002,4307.8,4307.7,6.6463272]
[1755751205519,0.002,4307.8,4307.7,6.81672166]
[1755751207996,0.002,4307.8,4307.7,10.38472166]
[1755751208198,0.002,4307.8,4307.7,6.81672166]
[1755751210431,0.002,4307.8,4307.7,10.38372166]
[1755751210732,0.002,4307.8,4307.7,11.04372166]
[1755751211105,0.002,4307.8,4307.7,11.15972166]
[1755751214714,0.002,4307.8,4307.7,11.4819468]
[1755751214916,0.002,4307.8,4307.7,11.5979468]
[1755751216536,0.002,4308.7,4308.2,2.981155]
[1755751216864,0.002,4308.7,4308.2,27.12924293]
[1755751217062,0.002,4308.7,4308.2,27.75325652]
[1755751217360,0.002,4308.7,4308.6,0.66]
[1755751217666,0.002,4308.7,4308.6,27.12902528]
[1755751217958,0.002,4308.7,4308.6,28.12661867]
[1755751218118,0.002,4308.7,4308.6,28.24261867]
[1755751221175,0.002,4308.7,4308.6,28.56484381]
[1755751222426,0.002,4309.6,4309.5,2.9804548]
[1755751222635,0.002,4309.6,4309.5,18.39899117]
[1755751222835,0.002,4309.6,4309.5,18.37578663]
[1755751223029,0.002,4309.6,4309.5,18.46879163]
[1755751228565,0.002,4309.6,4309.5,22.65879163]
[1755751236056,0.7447,4309.6,4309.5,4.399005]
[1755751236359,0.7447,4309.6,4309.5,10.869]
[1755751236561,0.7447,4309.6,4309.5,3.0]
[1755751236760,0.7447,4309.6,4309.5,6.563]
[1755751236979,0.7447,4309.6,4309.5,3.563]
[1755751236980,0.8607,4309.6,4309.5,3.563]
[1755751247173,0.8607,4309.6,4308.8,0.001]
[1755751247375,0.116,4309.2,4308.9,3.563]
[1755751247590,0.4088,4309.0,4308.9,6.563]
[1755751247792,0.8517,4309.0,4308.9,6.563]
[1755751249411,0.8517,4309.0,4308.9,7.260802]
[1755751250785,0.116,4309.0,4308.9,7.555702]
[1755751250991,0.002,4309.6,4308.9,9.06836557]
[1755751251191,0.116,4309.3,4309.2,7.56993373]
[1755751251393,0.116,4309.3,4309.2,11.13293373]
[1755751251588,0.116,4309.3,4309.2,16.74845008]
[1755751251780,0.002,4309.6,4309.3,3.0]
[1755751252109,0.002,4309.6,4309.5,10.56993373]
[1755751252499,0.7377,4309.6,4309.5,3.563]
[1755751252702,0.8537,4309.6,4309.5,3.563]
[1755751255381,0.8537,4309.6,4308.9,0.697802]
[1755751255612,0.116,4309.3,4309.0,3.563]
[1755751255815,0.2928,4309.1,4308.9,0.697802]
[1755751256016,0.2928,4309.1,4309.0,3.563]
[1755751256189,0.116,4309.0,4308.9,0.697802]
[1755751256516,0.4088,4309.0,4308.9,4.260802]
[1755751256715,0.8517,4309.0,4308.9,4.260802]
[1755751257600,1.69386337,4309.0,4308.9,0.697802]
[1755751258291,0.8517,4309.0,4308.9,0.697802]
[1755751258494,0.116,4309.0,4308.9,0.72100977]
[1755751258698,0.116,4309.0,4308.9,4.28400977]
[1755751259099,0.8517,4309.0,4308.9,4.260802]
[1755751260597,0.8517,4309.0,4308.9,4.57890977]
[1755751260598,0.116,4309.0,4308.9,4.57890977]
[1755751260812,0.002,4309.6,4308.9,6.00289412]
[1755751260813,0.116,4309.4,4308.9,6.00289412]
[1755751261011,0.116,4309.4,4308.9,5.77068635]
[1755751261210,0.4429,4309.3,4308.9,5.77068635]
[1755751261415,0.4429,4309.3,4308.9,4.555702]
[1755751261718,0.4429,4309.3,4308.9,4.57890977]
[1755751261921,0.116,4309.4,4308.9,0.72100977]
[1755751262107,0.4429,4309.2,4309.0,3.563]
[1755751262307,0.2928,4309.1,4309.0,3.563]
[1755751262517,0.4429,4309.2,4309.0,3.563]
[1755751263025,0.116,4309.4,4309.0,3.563]
[1755751263398,0.5589,4309.4,4309.0,3.563]
[1755751263602,0.5589,4309.4,4309.1,0.0232067]
[1755751263803,0.5589,4309.4,4309.0,3.563]
[1755751264000,0.2928,4309.1,4308.9,0.697802]
[1755751264206,0.2928,4309.1,4309.0,3.563]
[1755751264421,0.116,4309.1,4309.0,3.563]
[1755751264924,0.8517,4309.1,4309.0,3.563]
[1755751265798,0.4088,4309.1,4309.0,3.58620724]
[1755751265994,0.116,4309.1,4309.0,3.563]
[1755751266416,0.4088,4309.1,4309.0,3.563]
[1755751266607,0.8517,4309.1,4309.0,3.563]
[1755751267004,0.116,4309.1,4309.0,3.563]
[1755751267222,0.116,4309.1,4309.0,4.30728744]
[1755751267415,0.116,4309.1,4309.0,3.88110724]
[1755751267819,0.002,4309.6,4309.0,14.45104097]
[1755751268018,0.002,4309.6,4309.1,3.0]
[1755751268210,0.002,4309.6,4309.5,0.2949]
[1755751268406,0.002,4309.6,4309.5,3.8569]
[1755751268606,0.002,4309.6,4309.5,5.02510853]
[1755751268925,0.002,4309.6,4309.5,5.00190399]
[1755751269101,0.002,4309.6,4309.5,3.8569]
[1755751269528,0.002,4309.6,4309.5,3.88010454]
[1755751270236,0.002,4309.6,4309.5,10.30355934]
[1755751270442,0.002,4309.6,4309.5,10.60232666]
[1755751271507,0.002,4309.6,4309.5,4.1889]
[1755751271708,0.3124,4309.6,4309.5,3.234]
[1755751271912,0.7465,4309.6,4309.5,6.796]
[1755751273530,0.7465,4309.6,4309.5,6.68]
[1755751273734,0.7465,4309.6,4309.5,3.118]
[1755751273933,0.7465,4309.6,4309.5,0.118]
[1755751274133,0.7465,4309.6,4309.5,3.68]
[1755751275215,0.7465,4309.6,4309.5,0.118]
[1755751275416,2.55806127,4309.6,4309.3,3.562]
[1755751275617,2.55806127,4309.6,4308.8,0.001]
[1755751275618,0.116,4309.0,4308.8,0.001]
[1755751275803,0.116,4309.0,4308.9,0.118]
[1755751276137,0.8605,4309.0,4308.8,0.001]
[1755751276742,0.4341,4308.9,4308.8,0.001]
[1755751276937,17.97561267,4308.9,4308.8,0.001]
[1755751277237,2.55366127,4308.9,4308.8,0.001]
[1755751277427,0.8605,4308.9,4308.8,0.001]
[1755751287744,0.002,4309.6,4308.8,0.33890831]
[1755751287917,0.116,4309.3,4308.9,3.562]
[1755751288112,0.116,4309.3,4309.2,0.3147]
[1755751288545,0.116,4309.3,4309.2,0.4307]
[1755751288732,0.116,4309.3,4309.2,0.83229072]
[1755751289340,0.116,4309.3,4309.2,0.51759072]
[1755751289943,0.116,4309.3,4309.2,0.83229072]
[1755751290173,0.8605,4309.3,4309.2,3.678]
[1755751290657,0.4264,4309.3,4309.2,3.678]
[1755751290860,0.8605,4309.3,4309.2,3.678]
[1755751291666,0.116,4309.3,4309.2,3.9927]
[1755751292352,0.002,4309.6,4309.2,3.9927]
[1755751292556,0.002,4309.6,4309.3,0.42247562]
[1755751292759,0.002,4309.6,4309.5,0.3147]
[1755751294029,0.7465,4309.6,4309.3,0.39927]
[1755751294228,0.7465,4309.6,4309.5,3.561]
[1755751294624,0.7465,4309.6,4309.2,0.116]
[1755751294941,0.4341,4309.5,4309.3,3.561]
[1755751295337,0.4341,4309.5,4309.4,3.561]
[1755751295543,0.002,4309.6,4309.4,3.561]
[1755751295730,0.002,4309.6,4309.4,3.9403]
[1755751296144,0.4361,4309.6,4309.4,3.9403]
[1755751297143,0.002,4309.6,4309.5,0.3147]
[1755751297352,0.002,4309.6,4309.5,0.33790454]
[1755751297762,0.002,4309.6,4309.5,0.116]
[1755751297969,0.7465,4309.6,4309.5,0.232]
[1755751298438,0.7465,4309.6,4309.5,0.116]
[1755751298639,0.7465,4309.6,4309.5,3.677]
[1755751299063,0.002,4309.6,4309.5,3.677]
[1755751299268,0.3124,4309.6,4309.5,0.116]
[1755751299469,0.3124,4309.6,4309.5,3.677]
[1755751299935,0.7465,4309.6,4309.5,3.677]
[1755751300162,0.7465,4309.6,4309.5,0.116]
[1755751300368,0.7465,4309.6,4309.5,3.677]
[1755751300670,0.7465,4309.6,4309.5,3.9917]
[1755751300671,0.002,4309.6,4309.5,3.9917]
[1755751300971,0.002,4309.6,4309.5,4.4754]
[1755751301541,0.002,4309.6,4309.5,4.1607]
[1755751302245,0.002,4309.6,4309.5,3.677]
[1755751302845,0.7356,4309.6,4309.5,3.677]